fUST/lending_fUST_20240807
["ID","MTS","AMOUNT","RATE_DAILY","PERIOD"]
[334327803,1722981039047,-1000.0,0.00038355,25]
[334327804,1722981039056,-992.05,0.00038355,14]
[334327805,1722981039066,-992.05,0.00038355,14]
[334327806,1722981039076,-992.05,0.00038355,14]
[334327807,1722981039085,-992.05,0.00038355,14]
[334327808,1722981039095,-992.05,0.00038355,14]
[334327809,1722981039104,-992.05,0.00038355,14]
[334327810,1722981039114,-992.05,0.00038355,14]
[334327811,1722981039124,-992.05,0.00038355,14]
[334327812,1722981039134,-992.05,0.00038355,14]
[334327813,1722981039144,-992.05,0.00038355,14]
[334327814,1722981039154,-992.05,0.00038355,14]
[334327815,1722981039163,-992.13,0.00038355,14]
[334327816,1722981039173,-29247.45269311,0.00038356,21]
[334327817,1722981039183,-6369.43058913,0.00038356,21]
[334327818,1722981039193,-500.0,0.00038356,14]
[334327819,1722981039203,-500.0,0.00038356,14]
[334327821,1722981039214,-500.0,0.00038356,14]
[334327823,1722981039227,-500.0,0.00038356,14]
[334327825,1722981039237,-500.0,0.00038356,14]
[334327827,1722981039249,-559.81704241,0.00038356,14]
[334327829,1722981039259,-542.51,0.00038356,14]
[334327831,1722981039268,-500.0,0.00038356,14]
[334327833,1722981039278,-500.0,0.00038356,14]
[334327835,1722981039288,-500.0,0.00038356,14]
[334327837,1722981039298,-500.0,0.00038356,14]
[334327839,1722981039311,-500.0,0.00038356,14]
[334327841,1722981039320,-500.0,0.00038356,14]
[334327843,1722981039330,-500.0,0.00038356,14]
[334327845,1722981039339,-500.0,0.00038356,14]
[334327847,1722981039349,-500.0,0.00038356,14]
[334327849,1722981039359,-566.49,0.00038356,14]
[334327851,1722981039369,-500.0,0.00038356,14]
[334327853,1722981039381,-682.99,0.00038356,14]
[334327855,1722981039391,-500.0,0.00038356,14]
[334327857,1722981039401,-500.0,0.00038356,14]
[334327859,1722981039410,-520.1808664,0.00038356,14]
[334327861,1722981039422,-512.8772363,0.00038356,14]
[334327863,1722981039434,-778.07,0.00038356,14]
[334327865,1722981039446,-500.0,0.00038356,14]
[334327867,1722981039457,-500.0,0.00038356,14]
[334327869,1722981039468,-500.0,0.00038356,14]
[334327872,1722981039479,-500.0,0.00038356,14]
[334327874,1722981039490,-596.6,0.00038356,14]
[334327876,1722981039501,-500.0,0.00038356,14]
[334327878,1722981039512,-554.44731363,0.00038356,14]
[334327880,1722981039522,-1159.3,0.00038356,14]
[334327881,1722981039532,-500.0,0.00038356,14]
[334327884,1722981039542,-500.0,0.00038356,14]
[334327886,1722981039552,-500.0,0.00038356,14]
[334327888,1722981039562,-500.0,0.00038356,14]
[334327890,1722981039572,-500.0,0.00038356,14]
[334327891,1722981039581,-500.0,0.00038356,14]
[334327893,1722981039592,-505.06,0.00038356,14]
[334327896,1722981039603,-500.0,0.00038356,14]
[334327898,1722981039615,-483.20435339,0.00038356,14]
[334327900,1722981039626,-500.0,0.00038356,14]
[334327902,1722981039637,-500.0,0.00038356,14]
[334327904,1722981039648,-500.0,0.00038356,14]
[334327906,1722981039658,-500.0,0.00038356,14]
[334327908,1722981039668,-500.0,0.00038356,6]
[334327910,1722981039677,-1314.67,0.00038356,14]
[334327912,1722981039686,-711.28,0.00038356,14]
[334327914,1722981039696,-500.0,0.00038356,14]
[334327916,1722981039705,-500.0,0.00038356,14]
[334327918,1722981039715,-500.0,0.00038356,14]
[334327920,1722981039725,-500.0,0.00038356,14]
[334327922,1722981039735,-500.0,0.00038356,14]
[334327924,1722981039745,-500.0,0.00038356,14]
[334327926,1722981039755,-947.9,0.00038356,14]
[334327928,1722981039765,-479.22338152,0.00038356,14]
[334327930,1722981039775,-500.0,0.00038356,14]
[334327955,1722981039972,-500.0,0.00038356,14]
[334327957,1722981039982,-534.69919382,0.00038356,14]
[334327959,1722981039992,-500.0,0.00038356,14]
[334327961,1722981040001,-500.0,0.00038356,14]
[334327963,1722981040011,-500.0,0.00038356,14]
[334327965,1722981040021,-500.0,0.00038356,14]
[334327967,1722981040031,-500.0,0.00038356,14]
[334327969,1722981040040,-500.0,0.00038356,14]
[334327971,1722981040050,-500.0,0.00038356,14]
[334327973,1722981040059,-500.0,0.00038356,14]
[334327975,1722981040069,-500.0,0.00038356,14]
[334327977,1722981040079,-602.97,0.00038356,14]
[334327979,1722981040090,-537.98,0.00038356,14]
[334327981,1722981040099,-500.0,0.00038356,14]
[334327983,1722981040109,-500.0,0.00038356,14]
[334327985,1722981040118,-500.0,0.00038356,14]
[334327987,1722981040128,-500.0,0.00038356,14]
[334327989,1722981040138,-500.0,0.00038356,14]
[334327991,1722981040148,-500.0,0.00038356,14]
[334327993,1722981040157,-253.96016575,0.00038356,14]
[334327995,1722981040167,-500.0,0.00038356,14]
[334327996,1722981040177,-1456.83,0.00038356,14]
[334327998,1722981040186,-500.0,0.00038356,14]
[334328000,1722981040196,-500.0,0.00038356,7]
[334328002,1722981040206,-510.72223826,0.00038356,14]
[334328004,1722981040216,-500.0,0.00038356,14]
[334328006,1722981040225,-500.0,0.00038356,14]
[334328008,1722981040234,-500.0,0.00038356,14]
[334328010,1722981040244,-519.07,0.00038356,14]
[334328012,1722981040253,-500.0,0.00038356,14]
[334328014,1722981040263,-502.21132263,0.00038356,14]
[334328016,1722981040273,-500.0,0.00038356,14]
[334328018,1722981040283,-3272.5,0.00038356,14]
[334328020,1722981040292,-500.0,0.00038356,14]
[334328022,1722981040301,-500.0,0.00038356,14]
[334328024,1722981040313,-749.56,0.00038356,14]
[334328026,1722981040323,-3393.47,0.00038356,14]
[334328028,1722981040333,-500.0,0.00038356,14]
[334328030,1722981040342,-500.0,0.00038356,14]
[334328032,1722981040351,-500.0,0.00038356,14]
[334328034,1722981040361,-500.0,0.00038356,14]
[334328036,1722981040370,-500.0,0.00038356,14]
[334328038,1722981040380,-500.0,0.00038356,14]
[334328040,1722981040389,-500.0,0.00038356,14]
[334328042,1722981040398,-500.0,0.00038356,14]
[334328044,1722981040411,-736.67,0.00038356,14]
[334328046,1722981040420,-500.0,0.00038356,14]
[334328048,1722981040429,-500.0,0.00038356,14]
[334328050,1722981040442,-500.0,0.00038356,14]
[334328052,1722981040451,-500.0,0.00038356,14]
[334328054,1722981040460,-500.0,0.00038356,14]
[334328056,1722981040469,-500.0,0.00038356,14]
[334328058,1722981040479,-525.55163915,0.00038356,14]
[334328060,1722981040489,-500.0,0.00038356,14]
[334328062,1722981040498,-244.8856554,0.00038356,14]
[334328064,1722981040507,-500.0,0.00038356,14]
[334328066,1722981040518,-538.14,0.00038356,14]
[334328068,1722981040527,-500.0,0.00038356,14]
[334328070,1722981040536,-500.0,0.00038356,14]
[334328071,1722981040545,-690.23,0.00038356,14]
[334328073,1722981040554,-500.0,0.00038356,14]
[334328075,1722981040564,-1429.84,0.00038356,14]
[334328077,1722981040573,-648.87,0.00038356,14]
[334328079,1722981040582,-500.0,0.00038356,14]
[334328081,1722981040591,-500.0,0.00038356,14]
[334328083,1722981040600,-1957.74,0.00038356,14]
[334328086,1722981040610,-555.22,0.00038356,14]
[334328088,1722981040619,-526.21,0.00038356,14]
[334328089,1722981040628,-523.72376375,0.00038356,14]
[334328091,1722981040638,-868.28,0.00038356,14]
[334328093,1722981040647,-500.0,0.00038356,14]
[334328096,1722981040657,-500.0,0.00038356,14]
[334328098,1722981040667,-500.0,0.00038356,14]
[334328100,1722981040676,-500.0,0.00038356,14]
[334328102,1722981040686,-500.0,0.00038356,14]
[334328104,1722981040697,-500.0,0.00038356,14]
[334328106,1722981040706,-1420.79,0.00038356,14]
[334328108,1722981040715,-683.87,0.00038356,14]
[334328110,1722981040725,-500.0,0.00038356,14]
[334328112,1722981040735,-1209.01,0.00038356,14]
[334328114,1722981040744,-513.60074794,0.00038356,14]
[334328116,1722981040753,-500.0,0.00038356,14]
[334328118,1722981040763,-500.0,0.00038356,14]
[334328120,1722981040773,-500.0,0.00038356,50]
[334328122,1722981040782,-1135.58,0.00038356,14]
[334328124,1722981040792,-500.0,0.00038356,14]
[334328126,1722981040801,-500.0,0.00038356,14]
[334328128,1722981040811,-500.0,0.00038356,14]
[334328130,1722981040820,-500.0,0.00038356,14]
[334328132,1722981040830,-1323.97,0.00038356,14]
[334328134,1722981040839,-522.63605615,0.00038356,14]
[334328136,1722981040849,-500.0,0.00038356,14]
[334328138,1722981040859,-500.0,0.00038356,14]
[334328140,1722981040868,-500.0,0.00038356,14]
[334328142,1722981040878,-500.0,0.00038356,14]
[334328144,1722981040887,-500.0,0.00038356,14]
[334328146,1722981040898,-736.11,0.00038356,14]
[334328148,1722981040907,-1000.99,0.00038356,14]
[334328150,1722981040916,-631.8,0.00038356,14]
[334328152,1722981040926,-500.0,0.00038356,14]
[334328154,1722981040935,-881.9,0.00038356,14]
[334328156,1722981040944,-500.0,0.00038356,14]
[334328158,1722981040954,-500.0,0.00038356,14]
[334328160,1722981040963,-2953.41,0.00038356,14]
[334328161,1722981040972,-813.97,0.00038356,14]
[334328163,1722981040981,-570.53,0.00038356,14]
[334328165,1722981040991,-316.62048415,0.00038356,14]
[334328167,1722981041000,-500.0,0.00038356,14]
[334328168,1722981041009,-500.0,0.00038356,14]
[334328169,1722981041018,-500.0,0.00038356,14]
[334328171,1722981041027,-819.97,0.00038356,14]
[334328172,1722981041036,-500.0,0.00038356,14]
[334328173,1722981041046,-500.0,0.00038356,14]
[334328174,1722981041055,-500.0,0.00038356,14]
[334328175,1722981041064,-500.0,0.00038356,14]
[334328176,1722981041074,-500.0,0.00038356,14]
[334328177,1722981041084,-663.33,0.00038356,14]
[334328178,1722981041096,-579.16,0.00038356,14]
[334328179,1722981041106,-500.0,0.00038356,14]
[334328180,1722981041117,-2782.55,0.00038356,14]
[334328181,1722981041129,-547.99,0.00038356,14]
[334328182,1722981041140,-500.0,0.00038356,14]
[334328183,1722981041152,-500.0,0.00038356,14]
[334328184,1722981041161,-500.0,0.00038356,14]
[334328185,1722981041171,-500.0,0.00038356,14]
[334328186,1722981041181,-500.0,0.00038356,14]
[334328187,1722981041191,-636.32,0.00038356,14]
[334328188,1722981041202,-500.0,0.00038356,14]
[334328189,1722981041212,-483.74379695,0.00038356,14]
[334328190,1722981041222,-1178.34,0.00038356,14]
[334328191,1722981041232,-500.0,0.00038356,14]
[334328192,1722981041244,-500.0,0.00038356,14]
[334328193,1722981041256,-500.0,0.00038356,14]
[334328194,1722981041266,-500.0,0.00038356,14]
[334328195,1722981041276,-612.05,0.00038356,14]
[334328196,1722981041285,-592.45,0.00038356,14]
[334328197,1722981041296,-500.0,0.00038356,14]
[334328198,1722981041307,-540.65,0.00038356,14]
[334328199,1722981041318,-1512.36,0.00038356,14]
[334328200,1722981041327,-500.0,0.00038356,14]
[334328201,1722981041337,-1075.7,0.00038356,14]
[334328202,1722981041347,-500.0,0.00038356,14]
[334328203,1722981041356,-973.49,0.00038356,14]
[334328204,1722981041366,-709.52,0.00038356,14]
[334328205,1722981041375,-500.0,0.00038356,14]
[334328206,1722981041384,-151.0,0.00038356,7]
[334328207,1722981041394,-710.69,0.00038356,14]
[334328208,1722981041403,-688.00417253,0.00038356,14]
[334328209,1722981041412,-1914.51,0.00038356,14]
[334328210,1722981041422,-500.0,0.00038356,14]
[334328211,1722981041432,-500.0,0.00038356,14]
[334328212,1722981041445,-500.0,0.00038356,14]
[334328213,1722981041455,-509.53941895,0.00038356,14]
[334328214,1722981041465,-151.0,0.00038356,7]
[334328215,1722981041476,-560.92,0.00038356,14]
[334328216,1722981041488,-500.0,0.00038356,14]
[334328217,1722981041500,-1648.25,0.00038356,14]
[334328218,1722981041512,-2262.99,0.00038356,14]
[334328219,1722981041521,-500.0,0.00038356,14]
[334328220,1722981041531,-500.0,0.00038356,14]
[334328221,1722981041542,-500.0,0.00038356,14]
[334328222,1722981041551,-529.38204664,0.00038356,30]
[334328223,1722981041561,-500.0,0.00038356,14]
[334328224,1722981041571,-625.63,0.00038356,14]
[334328225,1722981041582,-521.23,0.00038356,14]
[334328226,1722981041591,-151.0,0.00038356,7]
[334328227,1722981041602,-500.0,0.00038356,14]
[334328228,1722981041612,-500.0,0.00038356,14]
[334328229,1722981041622,-500.0,0.00038356,14]
[334328230,1722981041633,-500.0,0.00038356,14]
[334328231,1722981041645,-234.67378755,0.00038356,14]
[334328232,1722981041655,-1482.23,0.00038356,14]
[334328233,1722981041665,-500.0,0.00038356,14]
[334328234,1722981041675,-429.76742033,0.00038356,14]
[334328247,1722981043109,-522.39318645,0.00020999,2]
[334328248,1722981043119,-403.85748772,0.00020999,2]
[334328249,1722981043129,-282.36257967,0.00038356,14]
[334328250,1722981043139,-694.51,0.00038356,14]
[334328251,1722981043148,-1590.65,0.00038356,14]
[334328252,1722981043157,-1025.42,0.00038356,14]
[334328253,1722981043167,-3556.16,0.00038356,14]
[334328254,1722981043176,-1073.93764493,0.00038356,30]
[334328255,1722981043187,-517.07651441,0.00038356,14]
[334328256,1722981043198,-4070.01,0.00038356,14]
[334328257,1722981043208,-637.97577666,0.00038356,14]
[334328258,1722981043219,-500.0,0.00038356,14]
[334328259,1722981043229,-921.24,0.00038356,14]
[334328260,1722981043239,-1343.29,0.00038356,14]
[334328261,1722981043249,-195.01194206,0.00038356,14]
[334328262,1722981043260,-500.0,0.00038356,14]
[334328263,1722981043272,-500.0,0.00038356,14]
[334328264,1722981043282,-536.32,0.00038356,14]
[334328265,1722981043291,-500.0,0.00038356,14]
[334328266,1722981043301,-500.0,0.00038356,14]
[334328267,1722981043312,-1232.71,0.00038356,14]
[334328268,1722981043322,-923.16,0.00038356,14]
[334328269,1722981043331,-500.0,0.00038356,14]
[334328270,1722981043340,-500.0,0.00038356,14]
[334328271,1722981043348,-500.0,0.00038356,14]
[334328272,1722981043358,-500.0,0.00038356,14]
[334328273,1722981043368,-500.0,0.00038356,14]
[334328274,1722981043377,-500.0,0.00038356,14]
[334328275,1722981043583,-500.0,0.00038356,14]
[334328276,1722981043598,-500.0,0.00038356,14]
[334328277,1722981043609,-1017.33,0.00038356,14]
[334328278,1722981043619,-500.0,0.00038356,14]
[334328279,1722981043628,-1351.93,0.00038356,14]
[334328280,1722981043638,-500.0,0.00038356,14]
[334328281,1722981043648,-500.0,0.00038356,14]
[334328282,1722981043658,-500.0,0.00038356,14]
[334328283,1722981043668,-500.0,0.00038356,14]
[334328284,1722981043678,-2308.09,0.00038356,14]
[334328285,1722981043687,-1335.21,0.00038356,14]
[334328286,1722981043697,-500.0,0.00038356,14]
[334328287,1722981043706,-509.0,0.00038356,14]
[334328288,1722981043716,-1581.41,0.00038356,14]
[334328289,1722981043726,-500.0,0.00038356,14]
[334328290,1722981043735,-500.0,0.00038356,14]
[334328291,1722981043745,-500.0,0.00038356,14]
[334328292,1722981043754,-500.0,0.00038356,14]
[334328293,1722981043764,-500.0,0.00038356,14]
[334328294,1722981043775,-500.0,0.00038356,14]
[334328295,1722981043784,-500.0,0.00038356,2]
[334328296,1722981043794,-500.0,0.00038356,14]
[334328297,1722981043803,-500.0,0.00038356,14]
[334328298,1722981043812,-3065.13,0.00038356,14]
[334328299,1722981043822,-1614.89,0.00038356,14]
[334328300,1722981043831,-500.0,0.00038356,14]
[334328301,1722981043841,-1052.36,0.00038356,14]
[334328302,1722981043850,-730.14,0.00038356,14]
[334328303,1722981043860,-151.0,0.00038356,7]
[334328304,1722981043870,-500.0,0.00038356,14]
[334328305,1722981043879,-500.0,0.00038356,14]
[334328306,1722981043888,-185.41214194,0.00038356,14]
[334328307,1722981044137,-544.38108266,0.00038256,2]
[334328308,1722981044156,-620.68243496,0.00038256,2]
[334328309,1722981044166,-314.58785806,0.00038356,14]
[334328310,1722981044175,-775.88,0.00038356,14]
[334328311,1722981044184,-362.20322998,0.00038356,14]
[334328327,1722981046349,-305.57509004,0.0002739,2]
[334328329,1722981046362,-200.0,0.00038256,120]
[334328331,1722981046371,-1388.0488725,0.00038346,3]
[334328334,1722981046399,-1127.4211275,0.00038346,3]
[334328335,1722981046408,-376.10677002,0.00038356,14]
[334328336,1722981046418,-500.0,0.00038356,14]
[334328337,1722981046428,-500.0,0.00038356,14]
[334328338,1722981046441,-769.75,0.00038356,14]
[334328339,1722981046451,-1213.12,0.00038356,14]
[334328340,1722981046460,-500.0,0.00038356,14]
[334328341,1722981046469,-500.0,0.00038356,14]
[334328342,1722981046479,-512.14111745,0.00038356,14]
[334328343,1722981046488,-500.0,0.00038356,14]
[334328344,1722981046497,-1565.13,0.00038356,14]
[334328346,1722981046506,-613.48,0.00038356,14]
[334328348,1722981046518,-1836.15,0.00038356,14]
[334328350,1722981046529,-500.0,0.00038356,14]
[334328352,1722981046539,-500.0,0.00038356,14]
[334328353,1722981046548,-1139.89,0.00038356,14]
[334328354,1722981046558,-324.91795303,0.00038356,14]
[334328355,1722981048614,239.20865639,9.9e-05,2]
[334328356,1722981048643,34.16470592,9.9e-05,2]
[334328357,1722981056551,273.37336231,9.9e-05,2]
[334328358,1722981135188,1091.57771247,0.00014,2]
[334328359,1722981140171,502.24554147,0.00015,2]
[334328361,1722981148800,159.27209445,0.00012,2]
[334328362,1722981149939,1091.57771247,0.00014,2]
[334328364,1722981152984,600.8534117,0.00012,2]
[334328365,1722981153378,234.95688653,0.00012,2]
[334328366,1722981154248,302.59507641,0.00015,2]
[334328367,1722981160352,1763.75242219,0.00012,2]
[334328368,1722981160428,188.2335741,0.00012,2]
[334328369,1722981161844,319.72766707,0.00012,2]
[334328370,1722981166412,154.77557542,0.00012,2]
[334328371,1722981167677,156.99277567,0.00012,2]
[334328372,1722981168851,209.86849569,0.00012,2]
[334328373,1722981170610,849.39914621,0.00012,2]
[334328374,1722981175210,273.37336231,9.9e-05,2]
[334328376,1722981284306,1643.15842058,0.00017882,7]
[334328377,1722981300770,154.82996095,0.00013,2]
[334328378,1722981338674,1630.23174338,0.00013,2]
[334328379,1722981359918,166.0239984,0.00015842,2]
[334328381,1722981468646,532.27882907,0.00015954,2]
[334328382,1722981503530,167.46199,0.00014247,2]
[334328383,1722981515444,154.60575532,0.00015954,2]
[334328384,1722981529339,154.77557542,0.00015954,2]
[334328385,1722981532419,493.2640819,0.00015822,2]
[334328386,1722981534496,156.73199194,0.00015954,2]
[334328387,1722981545445,154.60575532,0.00015954,2]
[334328388,1722981551020,412.94081029,0.00015954,2]
[334328389,1722981586940,200.6762431,0.00015734,2]
[334328390,1722981588238,506.48190828,0.00015954,2]
[334328391,1722981598190,342.05014288,0.00015954,2]
[334328394,1722981747442,250.0,0.00015955,2]
[334328395,1722981747658,250.0,0.00015999,2]
[334328396,1722981808618,4884.21551401,0.00015954,2]
[334328397,1722981811418,9110.76868748,0.00015954,2]
[334328398,1722981812296,9642.56191171,0.00015954,2]
[334328400,1722981858200,7001.77703298,0.00015954,2]
[334328401,1722981925724,727.52933543,0.00015954,2]
[334328402,1722981993396,154.77557542,0.00015954,2]
[334328403,1722982018015,302.82380668,0.00015954,2]
[334328405,1722982046268,-250.0,0.00016043,2]
[334328406,1722982046291,-250.0,0.00016087,2]
[334328407,1722982046314,-250.0,0.0001613,2]
[334328408,1722982046337,-250.0,0.00016174,2]
[334328409,1722982046360,-250.0,0.00016218,2]
[334328410,1722982046381,-599.99866433,0.00016247,2]
[334328411,1722982046407,-250.0,0.00016262,2]
[334328412,1722982046431,-250.0,0.00016305,2]
[334328413,1722982046456,-250.0,0.00016349,2]
[334328414,1722982046481,-250.0,0.00016393,2]
[334328415,1722982046504,-250.0,0.00016437,2]
[334328416,1722982046527,-250.0,0.0001648,2]
[334328417,1722982046553,-250.0,0.00016524,2]
[334328418,1722982046576,-250.0,0.00016568,2]
[334328419,1722982046597,-250.0,0.00016612,2]
[334328420,1722982046619,-250.0,0.00016655,2]
[334328421,1722982046642,-250.0,0.00016699,2]
[334328422,1722982046667,-250.0,0.00016743,2]
[334328423,1722982046690,-250.0,0.00016787,2]
[334328424,1722982046711,-300.0,0.000176,2]
[334328425,1722982046734,-300.0,0.000176,2]
[334328426,1722982046756,-415.1930123,0.000176,2]
[334328427,1722982046780,-1787.97761571,0.00017601,2]
[334328428,1722982048106,-186.50846044,0.00017601,2]
[334328429,1722982048148,-6140.81327152,0.00017601,2]
[334328430,1722982048416,156.8188046,0.00015954,2]
[334328431,1722982049110,-224.18763114,0.00017601,2]
[334328447,1722982115178,167.46199,0.00014247,2]
[334328449,1722982145113,-543.08033697,0.00018969,2]
[334328450,1722982145135,-533.72173015,0.00018979,2]
[334328451,1722982145157,-532.00289109,0.00018979,2]
[334328452,1722982145179,-300.0,0.00019129,2]
[334328453,1722982145203,-8209.71448637,0.0001913,2]
[334328454,1722982160230,-609.07543401,0.0001913,2]
[334328455,1722982173129,-323.39889741,0.0001913,2]
[334328475,1722982232721,-300.0,0.00019129,2]
[334328476,1722982232731,-7180.6354179,0.0001913,2]
[334328477,1722982232743,-739.62604424,0.0001913,2]
[334328481,1722982238352,-7837.54972007,0.0001913,2]
[334328482,1722982238362,-287.77266661,0.00019147,2]
[334328483,1722982238372,-154.77557542,0.00019155,2]
[334328484,1722982238381,-234.43475061,0.0002,2]
[334328485,1722982238395,-4181.6719909,0.0002,2]
[334328486,1722982238410,-1626.04191113,0.0002,2]
[334328487,1722982238419,-1465.19894372,0.0002,2]
[334328488,1722982238429,-156.37509576,0.0002,2]
[334328489,1722982238438,-466.46118807,0.00020948,2]
[334328490,1722982238449,-522.39318645,0.00020999,2]
[334328491,1722982238459,-500.0,0.0002101,2]
[334328492,1722982238469,-208.00449981,0.0002101,2]
[334328493,1722982238479,-500.0,0.0002101,2]
[334328494,1722982238489,-392.18888643,0.0002101,2]
[334328495,1722982238499,-500.0,0.0002101,2]
[334328496,1722982238508,-500.0,0.0002101,2]
[334328497,1722982238517,-500.0,0.0002101,2]
[334328498,1722982238526,-500.0,0.0002101,2]
[334328499,1722982238535,-500.0,0.0002101,2]
[334328500,1722982238544,-500.0,0.0002101,2]
[334328501,1722982238553,-223.90566725,0.0002101,2]
[334328502,1722982238562,-301.05042954,0.00021011,2]
[334328503,1722982238572,-236.21826388,0.00021011,2]
[334328504,1722982238581,-356.53097519,0.00021011,2]
[334328505,1722982238591,-1091.80507557,0.00021011,2]
[334328506,1722982238600,-420.0,0.00021041,2]
[334328507,1722982238609,-157.80579925,0.00021632,2]
[334328508,1722982238619,-160.57653845,0.00022,2]
[334328509,1722982238628,-302.27461649,0.00022,2]
[334328510,1722982238643,-881.61577024,0.0002217,2]
[334328511,1722982238652,-152.22286744,0.0002222,2]
[334328512,1722982238661,-1678.2382852,0.00022631,2]
[334328513,1722982238671,-587.0,0.00023146,2]
[334328514,1722982238680,-466.46118804,0.00023929,2]
[334328515,1722982238689,-216.30536308,0.00025,2]
[334328516,1722982238699,-823.0,0.0002546,2]
[334328517,1722982238708,-466.46118804,0.00026911,2]
[334328518,1722982238718,-628.84888409,0.00027465,2]
[334328519,1722982238728,-1152.0,0.00028006,2]
[334328520,1722982238739,-466.46118804,0.00029892,2]
[334328521,1722982238749,-12896.18570859,0.0003,2]
[334328522,1722982238759,-167.46199,0.00031781,2]
[334328523,1722982238768,-1108.94,0.00032602,14]
[334328524,1722982238777,-1108.94,0.00032602,14]
[334328525,1722982238786,-466.46118804,0.00032873,2]
[334328526,1722982238796,-181.945123,0.00034389,2]
[334328527,1722982238806,-156.012051,0.00034389,2]
[334328528,1722982238816,-172.4568,0.00034389,2]
[334328529,1722982238825,-152.726702,0.00034389,2]
[334328530,1722982238836,-10000.0,0.000355,30]
[334328531,1722982238849,-466.46118804,0.00035854,2]
[334328532,1722982238859,-181.945123,0.00036108,2]
[334328533,1722982238868,-156.012051,0.00036108,2]
[334328534,1722982238877,-172.4568,0.00036108,2]
[334328535,1722982238891,-1411.0,0.00036336,2]
[334328536,1722982238900,-151.0,0.00036355,2]
[334328537,1722982238909,-171.09,0.0003683,3]
[334328538,1722982238920,-2096.23,0.0003683,3]
[334328539,1722982238929,-513.27,0.0003683,3]
[334328540,1722982238938,-160.4334703,0.00036839,15]
[334328541,1722982238948,-500.0,0.00036839,15]
[334328542,1722982238957,-280.13979336,0.00036839,15]
[334328543,1722982238967,-500.0,0.00036839,15]
[334328544,1722982238976,-292.982053,0.00036839,15]
[334328545,1722982238985,-500.0,0.00036839,15]
[334328546,1722982238995,-500.0,0.00036839,15]
[334328547,1722982239005,-500.0,0.00036839,15]
[334328548,1722982239015,-43119.8099968,0.0003684,4]
[334328549,1722982239024,-153.0,0.00036986,2]
[334328550,1722982239034,-471.17624733,0.00037922,7]
[334328551,1722982239043,-1818.21319985,0.0003799,4]
[334328552,1722982239056,-879.19065568,0.0003799,4]
[334328553,1722982239068,-2845.67567444,0.0003799,4]
[334328554,1722982240297,-1314.4,0.0003799,4]
[334328555,1722982240314,-5730.0,0.0003799,4]
[334328556,1722982240368,-20.72316227,0.0003799,4]
[334328557,1722982240380,-73631.41730146,0.0003799,4]
[334328558,1722982240393,-30000.0,0.00038,30]
[334328559,1722982240402,-32000.0,0.00038,30]
[334328560,1722982240411,-4766.53087076,0.00038055,2]
[334328561,1722982240421,-4766.53087077,0.00038129,2]
[334328562,1722982240430,-1108.94,0.00038176,14]
[334328563,1722982240440,-157.31396554,0.00038188,25]
[334328564,1722982240450,-150.0,0.00038197,7]
[334328565,1722982240460,-5626.542,0.00038197,7]
[334328566,1722982240470,-342.18,0.000382,3]
[334328567,1722982240480,-150.112233,0.000382,10]
[334328568,1722982240489,-150.112233,0.000382,7]
[334328569,1722982240499,-1108.94,0.00038224,14]